fUSD/lending_fUSD_20250326
["ID","MTS","AMOUNT","RATE_DAILY","PERIOD"]
[356715738,1743012647093,-563.33055152,0.00027945,2]
[356715739,1743012647102,-500.0,0.00027945,2]
[356715740,1743012647112,-500.0,0.00027945,2]
[356715741,1743012647121,-500.0,0.00027945,2]
[356715742,1743012647130,-521.9309774,0.00027945,2]
[356715743,1743012647139,-500.0,0.00027945,2]
[356715744,1743012647148,-210.54429769,0.00027945,2]
[356715745,1743012647157,-500.0,0.00027945,2]
[356715746,1743012647166,-500.0,0.00027945,2]
[356715747,1743012647175,-358.019513,0.00027945,2]
[356715748,1743012647185,-501.955294,0.00027945,2]
[356715749,1743012647194,-712.4729778,0.00027975,2]
[356715750,1743012647203,-500.0,0.00028218,2]
[356715751,1743012647212,-596.82,0.00028218,2]
[356715752,1743012647221,-500.0,0.00028219,2]
[356715753,1743012647231,-500.0,0.00028219,2]
[356715754,1743012647241,-664.53,0.00028219,2]
[356715755,1743012647252,-500.0,0.00028219,2]
[356715756,1743012647262,-500.0,0.00028219,2]
[356715757,1743012647271,-500.0,0.00028219,2]
[356715758,1743012647281,-500.0,0.00028219,2]
[356715759,1743012647292,-500.0,0.00028219,2]
[356715760,1743012647301,-500.0,0.00028219,2]
[356715761,1743012647310,-500.0,0.00028219,2]
[356715762,1743012647320,-500.0,0.00028219,2]
[356715763,1743012647330,-500.0,0.00028219,2]
[356715764,1743012647340,-500.0,0.00028219,2]
[356715765,1743012647350,-648.49,0.00028219,2]
[356715766,1743012647359,-500.0,0.00028219,2]
[356715767,1743012647368,-1359.87,0.00028219,2]
[356715768,1743012647377,-500.0,0.00028219,2]
[356715769,1743012647386,-582.98,0.00028219,2]
[356715770,1743012647396,-500.0,0.00028219,2]
[356715771,1743012647405,-500.0,0.00028219,2]
[356715772,1743012647415,-500.0,0.00028219,2]
[356715773,1743012647424,-1640.68,0.00028219,2]
[356715774,1743012647435,-5537.15,0.00028219,2]
[356715775,1743012647444,-1332.77,0.00028219,2]
[356715776,1743012647454,-500.0,0.00028219,2]
[356715777,1743012647463,-6555.7,0.00028219,2]
[356715778,1743012647472,-500.0,0.00028219,2]
[356715779,1743012647483,-500.0,0.00028219,2]
[356715780,1743012647493,-2096.69,0.00028219,2]
[356715781,1743012647506,-500.0,0.00028219,2]
[356715782,1743012647518,-4201.48,0.00028219,2]
[356715783,1743012647527,-760.06,0.00028219,2]
[356715784,1743012647537,-500.0,0.00028219,2]
[356715785,1743012647546,-1032.3,0.00028219,2]
[356715786,1743012647556,-1073.59,0.00028219,2]
[356715787,1743012647565,-575.86608857,0.00028219,2]
[356715788,1743012647575,-500.0,0.00028219,2]
[356715789,1743012647584,-500.0,0.00028219,2]
[356715790,1743012647593,-500.0,0.00028219,2]
[356715791,1743012647603,-500.0,0.00028219,2]
[356715792,1743012647613,-676.11,0.00028219,2]
[356715793,1743012647622,-1514.73,0.00028219,2]
[356715794,1743012647632,-580.96,0.00028219,2]
[356715795,1743012647641,-547.26009923,0.00028219,2]
[356715796,1743012647650,-2344.78,0.00028219,2]
[356715797,1743012647660,-500.0,0.00028219,2]
[356715798,1743012647669,-500.0,0.00028219,2]
[356715799,1743012647679,-924.17,0.00028219,2]
[356715800,1743012647689,-500.0,0.00028219,2]
[356715801,1743012647698,-500.0,0.00028219,2]
[356715802,1743012647708,-8110.68,0.00028219,2]
[356715803,1743012647718,-757.14,0.00028219,2]
[356715804,1743012647727,-500.0,0.00028219,2]
[356715805,1743012647737,-537.93820485,0.00028219,2]
[356715806,1743012647747,-4334.17,0.00028219,2]
[356715807,1743012647758,-500.0,0.00028219,2]
[356715808,1743012647767,-500.0,0.00028219,2]
[356715809,1743012647779,-500.0,0.00028219,2]
[356715810,1743012647789,-500.0,0.00028219,2]
[356715811,1743012647799,-288.21470187,0.00028219,2]
[356715812,1743012647809,-2691.82,0.00028219,2]
[356715813,1743012647818,-49971.52,0.00028219,2]
[356715814,1743012647828,-500.0,0.00028219,2]
[356715815,1743012647837,-500.0,0.00028219,2]
[356715816,1743012647848,-1047.83,0.00028219,2]
[356715817,1743012647857,-504.52203978,0.00028219,2]
[356715818,1743012647867,-671.57,0.00028219,2]
[356715819,1743012647877,-500.0,0.00028219,2]
[356715820,1743012647887,-500.0,0.00028219,2]
[356715821,1743012647897,-500.0,0.00028219,2]
[356715822,1743012647907,-436.56,0.00028219,2]
[356715823,1743012647917,-500.0,0.00028219,2]
[356715824,1743012647928,-500.0,0.00028219,2]
[356715825,1743012647939,-500.0,0.00028219,2]
[356715826,1743012647949,-500.0,0.00028219,2]
[356715827,1743012647959,-500.0,0.00028219,2]
[356715828,1743012647969,-589.83,0.00028219,2]
[356715829,1743012647978,-500.0,0.00028219,2]
[356715830,1743012647988,-2087.27,0.00028219,2]
[356715831,1743012647999,-1006.52,0.00028219,2]
[356715832,1743012648011,-500.0,0.00028219,2]
[356715833,1743012648021,-500.0,0.00028219,2]
[356715834,1743012648032,-500.0,0.00028219,2]
[356715835,1743012648043,-500.0,0.00028219,2]
[356715836,1743012648053,-500.0,0.00028219,2]
[356715837,1743012648063,-500.0,0.00028219,2]
[356715838,1743012648074,-500.0,0.00028219,2]
[356715839,1743012648084,-500.0,0.00028219,2]
[356715840,1743012648093,-1000.0,0.00028274,2]
[356715841,1743012648103,-3622.58669078,0.00028378,2]
[356715842,1743012648114,-369.0,0.000284,2]
[356715843,1743012648123,-296.0,0.000284,2]
[356715844,1743012648134,-970.0,0.000284,2]
[356715845,1743012648145,-150.0,0.00028493,2]
[356715846,1743012648155,-1006.84046581,0.00028493,2]
[356715847,1743012648165,-500.0,0.00028493,2]
[356715848,1743012648175,-500.0,0.00028493,2]
[356715849,1743012648185,-664.53,0.00028493,2]
[356715850,1743012648195,-500.0,0.00028493,2]
[356715851,1743012648205,-500.0,0.00028493,2]
[356715852,1743012648215,-500.0,0.00028493,2]
[356715853,1743012648225,-314.76513721,0.00028493,2]
[356715854,1743012648235,-500.0,0.00028493,2]
[356715855,1743012648260,-500.0,0.00028493,2]
[356715856,1743012648272,-500.0,0.00028493,2]
[356715857,1743012648282,-500.0,0.00028493,2]
[356715858,1743012648293,-500.0,0.00028493,2]
[356715859,1743012648305,-500.0,0.00028493,2]
[356715860,1743012648315,-648.49,0.00028493,2]
[356715861,1743012648326,-500.0,0.00028493,2]
[356715862,1743012648337,-1359.87,0.00028493,2]
[356715863,1743012648346,-500.0,0.00028493,2]
[356715864,1743012648356,-582.98,0.00028493,2]
[356715865,1743012648366,-500.0,0.00028493,2]
[356715866,1743012648377,-184.78943646,0.00028493,2]
[356715867,1743012648387,-500.0,0.00028493,2]
[356715868,1743012648397,-1640.68,0.00028493,2]
[356715869,1743012648407,-5537.15,0.00028493,2]
[356715870,1743012648417,-1332.77,0.00028493,2]
[356715871,1743012648426,-500.0,0.00028493,2]
[356715872,1743012648436,-6555.7,0.00028493,2]
[356715873,1743012648446,-500.0,0.00028493,2]
[356715874,1743012648456,-500.0,0.00028493,2]
[356715875,1743012648466,-2096.69,0.00028493,2]
[356715876,1743012648476,-500.0,0.00028493,2]
[356715877,1743012648486,-4201.48,0.00028493,2]
[356715878,1743012648496,-760.06,0.00028493,2]
[356715879,1743012648506,-500.0,0.00028493,2]
[356715880,1743012648516,-1032.3,0.00028493,2]
[356715881,1743012648525,-1073.59,0.00028493,2]
[356715882,1743012648535,-500.0,0.00028493,2]
[356715883,1743012648710,-216.72157269,0.00028493,2]
[356715884,1743012648720,-500.0,0.00028493,2]
[356715885,1743012648729,-500.0,0.00028493,2]
[356715886,1743012648739,-676.11,0.00028493,2]
[356715887,1743012648749,-1514.73,0.00028493,2]
[356715888,1743012648759,-580.96,0.00028493,2]
[356715889,1743012648769,-2344.78,0.00028493,2]
[356715890,1743012648779,-500.0,0.00028493,2]
[356715891,1743012648789,-924.17,0.00028493,2]
[356715892,1743012648798,-468.61298193,0.00028493,2]
[356715893,1743012648808,-500.0,0.00028493,2]
[356715894,1743012648817,-8110.68,0.00028493,2]
[356715895,1743012648827,-757.14,0.00028493,2]
[356715896,1743012648836,-292.45193104,0.00028493,2]
[356715897,1743012648845,-4334.17,0.00028493,2]
[356715898,1743012648855,-500.0,0.00028493,2]
[356715899,1743012648864,-500.0,0.00028493,2]
[356715900,1743012648874,-500.0,0.00028493,2]
[356715901,1743012648883,-2691.82,0.00028493,2]
[356715902,1743012648894,-49971.52,0.00028493,2]
[356715903,1743012648904,-500.0,0.00028493,2]
[356715904,1743012648914,-500.0,0.00028493,2]
[356715905,1743012648923,-1047.83,0.00028493,2]
[356715906,1743012648933,-671.57,0.00028493,2]
[356715907,1743012648942,-507.2516643,0.00028493,2]
[356715908,1743012648952,-500.0,0.00028493,2]
[356715909,1743012648961,-500.0,0.00028493,2]
[356715910,1743012648970,-500.0,0.00028493,2]
[356715911,1743012648980,-500.0,0.00028493,2]
[356715912,1743012648989,-500.0,0.00028493,2]
[356715913,1743012648999,-500.0,0.00028493,2]
[356715914,1743012649010,-500.0,0.00028493,2]
[356715915,1743012649020,-589.83,0.00028493,2]
[356715916,1743012649030,-500.0,0.00028493,2]
[356715917,1743012649039,-2087.27,0.00028493,2]
[356715918,1743012649049,-1006.52,0.00028493,2]
[356715919,1743012649058,-381.65875932,0.00028493,2]
[356715920,1743012649067,-500.0,0.00028493,2]
[356715921,1743012649077,-500.0,0.00028493,2]
[356715922,1743012649087,-500.0,0.00028493,2]
[356715923,1743012649096,-500.0,0.00028493,2]
[356715924,1743012649105,-500.0,0.00028493,2]
[356715925,1743012649114,-500.0,0.00028493,2]
[356715926,1743012649124,-214.34259533,0.00028493,2]
[356715927,1743012649133,-1000.0,0.00028555,2]
[356715928,1743012649143,-1000.0,0.0002857,2]
[356715929,1743012649152,-553.36,0.00028748,2]
[356715930,1743012649162,-596.82,0.00028748,2]
[356715931,1743012649172,-500.0,0.00028767,2]
[356715932,1743012649182,-500.0,0.00028767,2]
[356715933,1743012649192,-664.53,0.00028767,2]
[356715934,1743012649202,-500.0,0.00028767,2]
[356715935,1743012649211,-500.0,0.00028767,2]
[356715936,1743012649222,-500.0,0.00028767,2]
[356715937,1743012649231,-500.0,0.00028767,2]
[356715938,1743012649242,-500.0,0.00028767,2]
[356715939,1743012649256,-500.0,0.00028767,2]
[356715940,1743012649266,-411.9908225,0.00028767,2]
[356715941,1743012649275,-500.0,0.00028767,2]
[356715942,1743012649285,-500.0,0.00028767,2]
[356715943,1743012649295,-648.49,0.00028767,2]
[356715944,1743012649304,-500.0,0.00028767,2]
[356715945,1743012649313,-1359.87,0.00028767,2]
[356715946,1743012649323,-500.0,0.00028767,2]
[356715947,1743012649334,-582.98,0.00028767,2]
[356715948,1743012649344,-500.0,0.00028767,2]
[356715949,1743012649355,-500.0,0.00028767,2]
[356715950,1743012649364,-1640.68,0.00028767,2]
[356715951,1743012649373,-5537.15,0.00028767,2]
[356715952,1743012649383,-1332.77,0.00028767,2]
[356715953,1743012649393,-500.0,0.00028767,2]
[356715954,1743012649402,-6555.7,0.00028767,2]
[356715955,1743012649411,-500.0,0.00028767,2]
[356715956,1743012649421,-500.0,0.00028767,2]
[356715957,1743012649430,-2096.69,0.00028767,2]
[356715958,1743012649440,-500.0,0.00028767,2]
[356715959,1743012649450,-4201.48,0.00028767,2]
[356715960,1743012649459,-760.06,0.00028767,2]
[356715961,1743012649469,-500.0,0.00028767,2]
[356715962,1743012649479,-1032.3,0.00028767,2]
[356715963,1743012649488,-1073.59,0.00028767,2]
[356715964,1743012649497,-500.0,0.00028767,2]
[356715965,1743012649507,-500.0,0.00028767,2]
[356715966,1743012649517,-500.0,0.00028767,2]
[356715967,1743012649526,-676.11,0.00028767,2]
[356715968,1743012649535,-1514.73,0.00028767,2]
[356715969,1743012649545,-580.96,0.00028767,2]
[356715970,1743012649556,-2344.78,0.00028767,2]
[356715971,1743012649566,-500.0,0.00028767,2]
[356715972,1743012649577,-924.17,0.00028767,2]
[356715973,1743012649587,-500.0,0.00028767,2]
[356715974,1743012649597,-8110.68,0.00028767,2]
[356715975,1743012649606,-757.14,0.00028767,2]
[356715976,1743012649616,-4334.17,0.00028767,2]
[356715977,1743012649626,-252.05873804,0.00028767,2]
[356715978,1743012649636,-500.0,0.00028767,2]
[356715979,1743012649645,-500.0,0.00028767,2]
[356715980,1743012649654,-2691.82,0.00028767,2]
[356715981,1743012649664,-49971.52,0.00028767,2]
[356715982,1743012649673,-514.44737741,0.00028767,2]
[356715983,1743012649683,-500.0,0.00028767,2]
[356715984,1743012649693,-1047.83,0.00028767,2]
[356715985,1743012649703,-671.57,0.00028767,2]
[356715986,1743012649712,-500.0,0.00028767,2]
[356715987,1743012649722,-500.0,0.00028767,2]
[356715988,1743012649731,-500.0,0.00028767,2]
[356715989,1743012649741,-500.0,0.00028767,2]
[356715990,1743012649751,-500.0,0.00028767,2]
[356715991,1743012649761,-500.0,0.00028767,2]
[356715992,1743012649771,-500.0,0.00028767,2]
[356715993,1743012649779,-589.83,0.00028767,2]
[356715994,1743012649789,-500.0,0.00028767,2]
[356715995,1743012649798,-150.0,0.00028767,2]
[356715996,1743012649808,-2087.27,0.00028767,2]
[356715997,1743012649817,-1006.52,0.00028767,2]
[356715998,1743012649827,-500.0,0.00028767,2]
[356715999,1743012649837,-503.76746457,0.00028767,2]
[356716000,1743012649847,-500.0,0.00028767,2]
[356716001,1743012649856,-426.67096016,0.00028767,2]
[356716002,1743012649865,-500.0,0.00028767,2]
[356716003,1743012649875,-500.0,0.00028767,2]
[356716004,1743012649884,-340.47,0.00028767,2]
[356716005,1743012649894,-1000.0,0.00028769,2]
[356716006,1743012649903,-150.0,0.00028773,5]
[356716007,1743012649913,-974.448,0.00028791,2]
[356716008,1743012649922,-3124.325,0.00028791,2]
[356716009,1743012649932,-907.0,0.00028791,2]
[356716010,1743012649942,-2631.819,0.00028791,2]
[356716011,1743012649952,-151.0,0.00028791,2]
[356716012,1743012649962,-1116.0,0.00028791,2]
[356716013,1743012649971,-1000.0,0.00028809,2]
[356716014,1743012649980,-1000.0,0.00028834,2]
[356716015,1743012649989,-1000.0,0.000289,10]
[356716016,1743012649999,-350.0,0.00029,2]
[356716017,1743012650010,-150.0,0.00029012,2]
[356716018,1743012650019,-596.82,0.0002904,2]
[356716019,1743012650029,-150.0,0.0002904,2]
[356716020,1743012650038,-500.0,0.00029041,2]
[356716021,1743012650048,-500.0,0.00029041,2]
[356716022,1743012650057,-664.53,0.00029041,2]
[356716023,1743012650067,-500.0,0.00029041,2]
[356716024,1743012650077,-330.51857632,0.00029041,2]
[356716025,1743012650087,-500.0,0.00029041,2]
[356716026,1743012650096,-500.0,0.00029041,2]
[356716027,1743012650105,-500.0,0.00029041,2]
[356716028,1743012650114,-500.0,0.00029041,2]
[356716029,1743012650123,-500.0,0.00029041,2]
[356716030,1743012650133,-500.0,0.00029041,2]
[356716031,1743012650142,-648.49,0.00029041,2]
[356716032,1743012650151,-500.0,0.00029041,2]
[356716033,1743012650160,-1359.87,0.00029041,2]
[356716034,1743012650169,-500.0,0.00029041,2]
[356716035,1743012650179,-582.98,0.00029041,2]
[356716036,1743012650188,-500.0,0.00029041,2]
[356716037,1743012650198,-500.0,0.00029041,2]
[356716038,1743012650208,-1640.68,0.00029041,2]
[356716039,1743012650218,-5537.15,0.00029041,2]
[356716040,1743012650228,-1332.77,0.00029041,2]
[356716041,1743012650237,-500.0,0.00029041,2]
[356716042,1743012650246,-6555.7,0.00029041,2]
[356716043,1743012650261,-500.0,0.00029041,2]
[356716044,1743012650270,-500.0,0.00029041,2]
[356716045,1743012650279,-2096.69,0.00029041,2]
[356716046,1743012650289,-500.0,0.00029041,2]
[356716047,1743012650299,-4201.48,0.00029041,2]
[356716048,1743012650308,-760.06,0.00029041,2]
[356716049,1743012650317,-500.0,0.00029041,2]
[356716050,1743012650326,-1032.3,0.00029041,2]
[356716051,1743012650336,-1073.59,0.00029041,2]
[356716052,1743012650345,-500.0,0.00029041,2]
[356716053,1743012650354,-500.0,0.00029041,2]
[356716054,1743012650363,-500.0,0.00029041,2]
[356716055,1743012650372,-676.11,0.00029041,2]
[356716056,1743012650382,-1514.73,0.00029041,2]
[356716057,1743012650391,-580.96,0.00029041,2]
[356716058,1743012650401,-2344.78,0.00029041,2]
[356716059,1743012650410,-498.56306388,0.00029041,2]
[356716060,1743012650420,-924.17,0.00029041,2]
[356716061,1743012650430,-500.0,0.00029041,2]
[356716062,1743012650440,-8110.68,0.00029041,2]
[356716063,1743012650449,-757.14,0.00029041,2]
[356716064,1743012650458,-4334.17,0.00029041,2]
[356716065,1743012650468,-529.8569876,0.00029041,2]
[356716066,1743012650477,-500.0,0.00029041,2]
[356716067,1743012650486,-2691.82,0.00029041,2]
[356716068,1743012650495,-49971.52,0.00029041,2]
[356716069,1743012650504,-620.94815256,0.00029041,2]
[356716070,1743012650513,-1047.83,0.00029041,2]
[356716071,1743012650522,-671.57,0.00029041,2]
[356716072,1743012650532,-500.0,0.00029041,2]
[356716073,1743012650541,-500.0,0.00029041,2]
[356716074,1743012650550,-500.0,0.00029041,2]
[356716075,1743012650560,-500.0,0.00029041,2]
[356716076,1743012650569,-500.0,0.00029041,2]
[356716077,1743012650578,-500.0,0.00029041,2]
[356716078,1743012650587,-500.0,0.00029041,2]
[356716079,1743012650596,-589.83,0.00029041,2]
[356716080,1743012650605,-500.0,0.00029041,2]
[356716081,1743012650615,-2087.27,0.00029041,2]
[356716082,1743012650623,-1006.52,0.00029041,2]
[356716083,1743012650633,-500.0,0.00029041,2]
[356716084,1743012650642,-500.0,0.00029041,2]
[356716085,1743012650651,-500.0,0.00029041,2]
[356716086,1743012650660,-500.0,0.00029041,2]
[356716087,1743012650671,-1000.0,0.00029119,2]
[356716088,1743012650680,-22396.21291669,0.00029138,2]
[356716089,1743012650690,-1000.0,0.00029152,2]
[356716090,1743012650699,-1000.0,0.0002918,2]
[356716091,1743012650707,-450.06,0.00029191,30]
[356716092,1743012650717,-150.0,0.00029281,2]
[356716093,1743012650726,-150.0,0.00029281,2]
[356716094,1743012650735,-150.0,0.00029304,2]
[356716095,1743012650744,-500.0,0.00029315,2]
[356716096,1743012650753,-500.0,0.00029315,2]
[356716097,1743012650762,-664.53,0.00029315,2]
[356716098,1743012650771,-500.0,0.00029315,2]
[356716099,1743012650781,-500.0,0.00029315,2]
[356716100,1743012650791,-500.0,0.00029315,2]
[356716101,1743012650800,-500.0,0.00029315,2]
[356716102,1743012650809,-500.0,0.00029315,2]
[356716103,1743012650818,-500.0,0.00029315,2]
[356716104,1743012650827,-500.0,0.00029315,2]
[356716105,1743012650836,-648.49,0.00029315,2]
[356716106,1743012650845,-500.0,0.00029315,2]
[356716107,1743012650854,-1359.87,0.00029315,2]
[356716108,1743012650863,-500.0,0.00029315,2]
[356716109,1743012650872,-582.98,0.00029315,2]
[356716110,1743012650882,-500.0,0.00029315,2]
[356716111,1743012650891,-500.0,0.00029315,2]
[356716112,1743012650901,-1640.68,0.00029315,2]
[356716113,1743012650910,-5537.15,0.00029315,2]
[356716114,1743012650919,-1332.77,0.00029315,2]
[356716115,1743012650929,-500.0,0.00029315,2]
[356716116,1743012650938,-6555.7,0.00029315,2]
[356716117,1743012650947,-500.0,0.00029315,2]
[356716118,1743012650956,-500.0,0.00029315,2]
[356716119,1743012650965,-2096.69,0.00029315,2]
[356716120,1743012650974,-500.0,0.00029315,2]
[356716121,1743012650985,-4201.48,0.00029315,2]
[356716122,1743012650993,-760.06,0.00029315,2]
[356716123,1743012651002,-500.0,0.00029315,2]
[356716124,1743012651012,-1032.3,0.00029315,2]
[356716125,1743012651021,-1073.59,0.00029315,2]
[356716126,1743012651031,-500.0,0.00029315,2]
[356716127,1743012651039,-500.0,0.00029315,2]
[356716128,1743012651049,-500.0,0.00029315,2]
[356716129,1743012651058,-676.11,0.00029315,2]
[356716130,1743012651067,-1514.73,0.00029315,2]
[356716131,1743012651076,-580.96,0.00029315,2]
[356716132,1743012651086,-2344.78,0.00029315,2]
[356716133,1743012651095,-924.17,0.00029315,2]
[356716134,1743012651103,-500.0,0.00029315,2]
[356716135,1743012651113,-8110.68,0.00029315,2]
[356716136,1743012651122,-757.14,0.00029315,2]
[356716137,1743012651131,-4334.17,0.00029315,2]
[356716138,1743012651140,-500.0,0.00029315,2]
[356716139,1743012651149,-2691.82,0.00029315,2]
[356716140,1743012651158,-49971.52,0.00029315,2]
[356716141,1743012651167,-1047.83,0.00029315,2]
[356716142,1743012651176,-671.57,0.00029315,2]
[356716143,1743012651185,-500.0,0.00029315,2]
[356716144,1743012651194,-500.0,0.00029315,2]
[356716145,1743012651203,-500.0,0.00029315,2]
[356716146,1743012651212,-500.0,0.00029315,2]
[356716147,1743012651220,-500.0,0.00029315,2]
[356716148,1743012651229,-500.0,0.00029315,2]
[356716149,1743012651238,-500.0,0.00029315,2]
[356716150,1743012651252,-589.83,0.00029315,2]
[356716151,1743012651262,-500.0,0.00029315,2]
[356716152,1743012651270,-2087.27,0.00029315,2]
[356716153,1743012651280,-1006.52,0.00029315,2]
[356716154,1743012651289,-500.0,0.00029315,2]
[356716155,1743012651299,-500.0,0.00029315,2]
[356716156,1743012651308,-500.0,0.00029315,2]
[356716157,1743012651318,-500.0,0.00029315,2]
[356716158,1743012651328,-250.0,0.00029321,5]
[356716159,1743012651338,-150.0,0.00029356,2]
[356716160,1743012651347,-1000.0,0.00029394,2]
[356716161,1743012651356,-1000.0,0.00029587,2]
[356716162,1743012651365,-596.82,0.00029588,2]
[356716163,1743012651374,-596.82,0.00029588,2]
[356716164,1743012651384,-596.82,0.00029588,2]
[356716165,1743012651393,-596.82,0.00029588,2]
[356716166,1743012651402,-596.99873975,0.00029588,2]
[356716167,1743012651413,-500.0,0.00029589,2]
[356716168,1743012651422,-511.45811132,0.00029589,2]
[356716169,1743012651431,-664.53,0.00029589,2]
[356716170,1743012651440,-500.0,0.00029589,2]
[356716171,1743012651449,-500.0,0.00029589,2]
[356716172,1743012651459,-165.93885843,0.00029589,2]
[356716173,1743012651580,-500.0,0.00029589,2]
[356716174,1743012651590,-500.0,0.00029589,2]
[356716175,1743012651599,-500.0,0.00029589,2]
[356716176,1743012651608,-500.0,0.00029589,2]
[356716177,1743012651617,-648.49,0.00029589,2]
[356716178,1743012651626,-500.0,0.00029589,2]
[356716179,1743012651635,-1359.87,0.00029589,2]
[356716180,1743012651644,-500.0,0.00029589,2]
[356716181,1743012651653,-582.98,0.00029589,2]
[356716182,1743012651662,-500.0,0.00029589,2]
[356716183,1743012651671,-424.76909872,0.00029589,2]
[356716184,1743012651680,-1640.68,0.00029589,2]
[356716185,1743012651689,-5537.15,0.00029589,2]
[356716186,1743012651699,-1332.77,0.00029589,2]
[356716187,1743012651707,-500.0,0.00029589,2]
[356716188,1743012651716,-6555.7,0.00029589,2]
[356716189,1743012651725,-528.97377735,0.00029589,2]
[356716190,1743012651734,-500.0,0.00029589,2]
[356716191,1743012651743,-2096.69,0.00029589,2]
[356716192,1743012651752,-500.0,0.00029589,2]
[356716193,1743012651761,-4201.48,0.00029589,2]
[356716194,1743012651770,-760.06,0.00029589,2]
[356716195,1743012651780,-500.0,0.00029589,2]
[356716196,1743012651788,-1032.3,0.00029589,2]
[356716197,1743012651797,-1073.59,0.00029589,2]
[356716198,1743012651808,-587.57887122,0.00029589,2]
[356716199,1743012651817,-500.0,0.00029589,2]
[356716200,1743012651827,-500.0,0.00029589,2]
[356716201,1743012651837,-676.11,0.00029589,2]
[356716202,1743012651846,-1514.73,0.00029589,2]
[356716203,1743012651855,-580.96,0.00029589,2]
[356716204,1743012651865,-2344.78,0.00029589,2]
[356716205,1743012651874,-924.17,0.00029589,2]
[356716206,1743012651883,-277.94726879,0.00029589,2]
[356716207,1743012651892,-8110.68,0.00029589,2]
[356716208,1743012651901,-757.14,0.00029589,2]
[356716209,1743012651910,-4334.17,0.00029589,2]
[356716210,1743012651919,-500.0,0.00029589,2]
[356716211,1743012651928,-2691.82,0.00029589,2]
[356716212,1743012651937,-49971.52,0.00029589,2]
[356716213,1743012651947,-1047.83,0.00029589,2]
[356716214,1743012651956,-671.57,0.00029589,2]
[356716215,1743012651965,-500.0,0.00029589,2]
[356716216,1743012651974,-500.0,0.00029589,2]
[356716217,1743012651983,-500.0,0.00029589,2]
[356716218,1743012651992,-500.0,0.00029589,2]
[356716219,1743012652001,-500.0,0.00029589,2]
[356716220,1743012652011,-500.0,0.00029589,2]
[356716221,1743012652020,-500.0,0.00029589,2]
[356716222,1743012652030,-589.83,0.00029589,2]
[356716223,1743012652039,-500.0,0.00029589,2]
[356716224,1743012652048,-2087.27,0.00029589,2]
[356716225,1743012652057,-1006.52,0.00029589,2]
[356716226,1743012652066,-500.0,0.00029589,2]
[356716227,1743012652075,-500.0,0.00029589,2]
[356716228,1743012652084,-568.09384035,0.00029589,2]
[356716229,1743012652093,-500.0,0.00029589,2]
[356716230,1743012652102,-1000.0,0.00029633,2]
[356716231,1743012652112,-1000.0,0.00029649,2]
[356716232,1743012652121,-150.0,0.00029679,2]
[356716233,1743012652131,-500.0,0.00029726,2]
[356716234,1743012652139,-150.0,0.00029761,2]
[356716235,1743012652149,-735.57939225,0.00029763,2]
[356716236,1743012652158,-9374.00719751,0.00029763,2]
[356716237,1743012652167,-1716.1008941,0.00029763,2]